bitfinex-derivatives/quotes_BTCF0:USTF0_20240902
["timestamp","ask_amount","ask_price","bid_price","bid_amount"]
[1725249699042,0.24973721,57680.0,57679.0,0.0074]
[1725249699345,0.24973721,57680.0,57658.0,0.00365055]
[1725249699346,0.0607,57663.0,57650.0,0.3608]
[1725249699531,0.42905521,57680.0,57650.0,0.3608]
[1725249699532,0.3608,57665.0,57654.0,0.300709]
[1725249699732,0.19777285,57662.0,57655.0,0.060708]
[1725249700040,0.19777285,57664.0,57657.0,0.88108]
[1725249700229,0.3608,57665.0,57657.0,0.3608]
[1725249700432,0.18458463,57664.0,57663.0,0.4215]
[1725249700631,0.18458463,57664.0,57663.0,1.18174]
[1725249700632,0.10554066,57664.0,57663.0,1.18174]
[1725249700839,0.00026017,57669.0,57668.0,0.060695]
[1725249701139,0.00026017,57669.0,57668.0,0.941695]
[1725249701457,0.3608,57686.0,57679.0,0.060683]
[1725249701634,0.3608,57686.0,57680.0,0.3608]
[1725249701835,0.19771585,57685.0,57680.0,0.3608]
[1725249702036,0.55851585,57685.0,57674.0,0.24]
[1725249702309,0.060678,57684.0,57674.0,0.24]
[1725249702548,0.24317112,57684.0,57674.0,0.24026017]
[1725249703242,0.18249312,57684.0,57674.0,0.00026017]
[1725249703444,0.060687,57676.0,57674.0,0.00026017]
[1725249703636,0.3612,57675.0,57674.0,0.00026017]
[1725249703837,1.07461185,57675.0,57655.0,0.3608]
[1725249704037,0.0004,57656.0,57655.0,0.3608]
[1725249704531,0.20131558,57656.0,57655.0,1.48112]
[1725249704735,0.42244801,57675.0,57655.0,1.72112]
[1725249704931,0.00026017,57671.0,57661.0,0.24]
[1725249705135,0.18191189,57669.0,57661.0,0.24]
[1725249705340,0.18191189,57670.0,57661.0,0.24]
[1725249705544,0.00026017,57671.0,57661.0,0.300702]
[1725249705864,0.18191189,57670.0,57663.0,0.060699]
[1725249706445,0.18191189,57670.0,57661.0,0.24]
[1725249706942,0.001,57669.0,57661.0,0.300702]
[1725249707449,0.18366782,57668.0,57666.0,0.060696]
[1725249707744,0.18366782,57669.0,57662.0,0.112]
[1725249708139,0.06095217,57671.0,57662.0,0.112]
[1725249708347,0.19169731,57668.0,57662.0,0.112]
[1725249708739,0.00026017,57671.0,57662.0,0.112]
[1725249709140,0.20054651,57667.0,57662.0,0.112]
[1725249709511,0.00026017,57671.0,57662.0,0.172701]
[1725249709748,0.20054651,57666.0,57662.0,0.172701]
[1725249709941,0.20054651,57667.0,57663.0,0.52024]
[1725249710138,0.00026017,57671.0,57662.0,0.22]
[1725249710340,0.00026017,57671.0,57669.0,0.060693]
[1725249710554,0.00026017,57671.0,57668.0,0.3608]
[1725249710555,0.060679,57684.0,57668.0,0.3608]
[1725249710742,0.060679,57684.0,57674.0,0.24]
[1725249711139,0.18999359,57683.0,57674.0,0.24]
[1725249711344,0.18999359,57683.0,57678.0,0.060684]
[1725249711645,0.18999359,57684.0,57678.0,0.060684]
[1725249711852,0.18999359,57684.0,57675.0,0.00026017]
[1725249712056,0.3608,57685.0,57680.0,0.6008]
[1725249712249,0.3608,57685.0,57681.0,0.2252]
[1725249712446,0.3608,57685.0,57684.0,0.0004]
[1725249712955,0.602138,57685.0,57684.0,0.0004]
[1725249713055,0.541461,57685.0,57684.0,0.0004]
[1725249713553,1.022261,57685.0,57684.0,0.0004]
[1725249713750,0.060686,57676.0,57675.0,0.00026017]
[1725249713959,0.060686,57676.0,57658.0,0.08620274]
[1725249713960,0.24,57669.0,57653.0,0.06845879]
[1725249714160,0.24,57669.0,57649.0,0.06845879]
[1725249714161,0.0004,57656.0,57649.0,0.06845879]
[1725249714456,0.060718,57646.0,57638.0,0.0004]
[1725249714753,0.060718,57646.0,57639.0,0.06845879]
[1725249714951,0.18054342,57645.0,57639.0,0.06845879]
[1725249715146,0.18054342,57645.0,57640.0,0.06845879]
[1725249715352,0.18054342,57645.0,57641.0,0.06845879]
[1725249715549,0.18054342,57645.0,57642.0,0.08620274]
[1725249715752,0.18054342,57645.0,57644.0,0.08620274]
[1725249715951,0.00026017,57648.0,57647.0,0.060717]
[1725249716149,0.00026017,57648.0,57647.0,0.43289695]
[1725249716385,0.0014,57656.0,57655.0,0.060708]
[1725249716662,0.3608,57669.0,57665.0,0.060697]
[1725249716987,0.3608,57673.0,57666.0,0.13217995]
[1725249717151,0.3608,57673.0,57671.0,0.08612423]
[1725249717355,0.1915377,57672.0,57667.0,0.10335017]
[1725249717675,0.00026017,57678.0,57670.0,0.10335017]
[1725249717676,0.36106017,57678.0,57670.0,0.10335017]
[1725249717851,0.36106017,57678.0,57674.0,0.10338567]
[1725249718052,0.36106017,57678.0,57669.0,0.3608]
[1725249718053,0.1915377,57677.0,57675.0,0.23551311]
[1725249718358,0.1915377,57677.0,57676.0,0.13212744]
[1725249718664,0.1915377,57677.0,57676.0,0.23550187]
[1725249718858,0.36106017,57678.0,57676.0,0.23550187]
[1725249719059,0.36106017,57678.0,57677.0,0.13212744]
[1725249719355,0.55144159,57678.0,57677.0,0.23550187]
[1725249719747,0.19038142,57678.0,57677.0,0.13212744]
[1725249720057,0.3608,57683.0,57677.0,0.13212744]
[1725249720414,0.3608,57683.0,57674.0,0.3608]
[1725249720415,0.3608,57683.0,57678.0,0.23557506]
[1725249720477,0.3608,57693.0,57682.0,0.3608]
[1725249720759,0.24253348,57688.0,57687.0,0.0862208]
[1725249720963,0.24253348,57688.0,57683.0,0.13212744]
[1725249720964,0.060676,57686.0,57684.0,8e-07]
[1725249721160,0.24,57684.0,57682.0,0.00026017]
[1725249721360,0.3608,57683.0,57682.0,0.00026017]
[1725249721659,0.56120556,57683.0,57682.0,0.00026017]
[1725249721962,0.56080556,57683.0,57682.0,0.00026017]
[1725249722364,0.56180556,57683.0,57682.0,0.00026017]
[1725249722571,0.66690556,57683.0,57682.0,0.06926328]
[1725249722874,0.20000556,57683.0,57682.0,0.00026017]
[1725249723161,0.006,57683.0,57682.0,0.13337377]
[1725249723367,0.006,57683.0,57682.0,0.00126017]
[1725249723554,0.19857689,57683.0,57682.0,0.00026017]
[1725249723859,0.008,57683.0,57682.0,0.00126017]
[1725249724251,0.2066112,57683.0,57682.0,0.00126017]
[1725249724757,0.011,57683.0,57682.0,0.52134017]
[1725249724951,0.011,57683.0,57682.0,0.59033033]
[1725249725160,0.0004,57685.0,57682.0,1.12134017]
[1725249725354,0.0004,57685.0,57684.0,0.6012]
[1725249725550,0.0004,57685.0,57684.0,1.2012]
[1725249725755,0.3608,57705.0,57684.0,1.85334926]
[1725249726057,0.3608,57705.0,57692.0,0.0004]
[1725249726276,0.3608,57695.0,57692.0,0.0004]
[1725249726453,0.19683205,57693.0,57692.0,0.0004]
[1725249727357,0.19783205,57693.0,57692.0,0.0104]
[1725249727956,0.00126017,57693.0,57692.0,0.0104]
[1725249728156,0.19368725,57693.0,57692.0,0.0104]
[1725249728758,0.19368725,57693.0,57692.0,0.0004]
[1725249729149,0.00126017,57693.0,57692.0,0.5204]
[1725249729354,0.060661,57700.0,57692.0,0.63280283]
[1725249729550,0.060661,57700.0,57699.0,0.0004]
[1725249729759,0.3608,57703.0,57699.0,0.0004]
[1725249730096,0.18540533,57700.0,57699.0,0.0004]
[1725249730171,0.1941546,57702.0,57698.0,0.060663]
[1725249730369,0.0004,57699.0,57698.0,0.060663]
[1725249731153,0.00026017,57705.0,57704.0,0.060657]
[1725249731468,0.3608,57726.0,57706.0,0.060655]
[1725249731666,0.060644,57717.0,57715.0,0.0516129]
[1725249731959,0.1891343,57719.0,57716.0,0.0516129]
[1725249732170,0.36168,57721.0,57718.0,0.0004]
[1725249732363,0.060638,57722.0,57718.0,0.0004]
[1725249732364,0.060638,57722.0,57720.0,0.0004]
[1725249732660,0.19997667,57721.0,57718.0,0.0004]
[1725249732867,0.26061567,57721.0,57718.0,0.0004]
[1725249733360,0.18438256,57725.0,57718.0,0.0004]
[1725249733662,0.18438256,57720.0,57718.0,0.0004]
[1725249733869,0.060636,57724.0,57718.0,0.0004]
[1725249734061,0.060636,57724.0,57723.0,0.0004]
[1725249734461,0.25342212,57724.0,57723.0,0.0004]
[1725249734665,0.060641,57719.0,57718.0,0.0004]
[1725249734863,0.421441,57719.0,57718.0,0.0004]
[1725249735168,0.25342712,57719.0,57718.0,0.0004]
[1725249735665,0.19278612,57719.0,57718.0,0.0004]
[1725249735856,0.19278612,57719.0,57717.0,0.060643]
[1725249736056,0.00017106,57727.0,57721.0,0.060639]
[1725249736494,0.1879218,57724.0,57717.0,0.3608]
[1725249736764,0.06080406,57727.0,57717.0,0.3608]
[1725249737173,0.20068054,57726.0,57717.0,0.3608]
[1725249738074,0.20068054,57726.0,57719.0,0.060641]
[1725249738370,0.06154383,57725.0,57719.0,0.060641]
[1725249738668,0.24546079,57724.0,57721.0,0.001]
[1725249738867,0.06154383,57723.0,57721.0,0.001]
[1725249739076,0.06154383,57722.0,57720.0,0.06064]
[1725249739374,0.0619442,57721.0,57720.0,0.06064]
[1725249740294,0.0619442,57721.0,57720.0,1.1804]
[1725249740295,0.10313009,57721.0,57720.0,1.1804]
[1725249740569,0.0012,57733.0,57732.0,0.060627]
[1725249740774,0.02807713,57733.0,57732.0,0.421427]
[1725249740959,3e-08,57738.0,57733.0,0.5196]
[1725249741160,0.06147862,57746.0,57737.0,0.6012]
[1725249741462,0.08555782,57757.0,57745.0,0.6008]
[1725249741765,0.08555782,57768.0,57756.0,0.722]
[1725249742070,0.08555782,57770.0,57767.0,0.722]
[1725249742265,0.060588,57770.0,57769.0,0.0004]
[1725249742655,0.2513761,57770.0,57769.0,0.0004]
[1725249744164,0.060597,57762.0,57757.0,0.3608]
[1725249744365,0.060597,57761.0,57756.0,0.00025967]
[1725249744669,0.3608,57757.0,57756.0,0.00025967]
[1725249744866,0.060601,57758.0,57756.0,0.00025967]
[1725249745067,0.1831718,57757.0,57756.0,0.00025967]
[1725249745677,0.39024119,57757.0,57756.0,0.00825967]
[1725249745858,0.2875718,57757.0,57756.0,0.00825967]
[1725249746062,0.2875718,57757.0,57756.0,0.00025967]
[1725249746356,0.2875718,57757.0,57756.0,0.00225967]
[1725249747762,0.2875718,57757.0,57756.0,0.00025967]
[1725249747968,1.7688118,57757.0,57742.0,0.3608]
[1725249748167,0.3608,57749.0,57742.0,0.3608]
[1725249748465,0.3608,57749.0,57744.0,0.060615]
[1725249748658,0.20101328,57748.0,57744.0,0.060615]
[1725249748863,0.20101328,57748.0,57742.0,0.3608]
[1725249749059,0.3608,57749.0,57742.0,0.3608]
[1725249749358,0.3608,57749.0,57748.0,0.0004]
[1725249749772,0.55841923,57749.0,57748.0,0.0004]
[1725249750962,0.19761923,57749.0,57748.0,0.061011]
[1725249751172,0.00025882,57752.0,57748.0,1.11988]
[1725249751361,0.00025882,57752.0,57751.0,0.2404]
[1725249751874,0.060595,57763.0,57751.0,0.75988]
[1725249752174,0.060595,57763.0,57762.0,0.0004]
[1725249752676,0.25077157,57763.0,57762.0,0.0004]
[1725249753175,0.0606,57758.0,57757.0,0.00025967]
[1725249753366,0.4218,57758.0,57757.0,0.00025967]
[1725249753683,0.6036517,57758.0,57757.0,0.00025967]
[1725249755365,0.2428517,57758.0,57757.0,0.00025967]
[1725249755678,0.30922848,57763.0,57757.0,0.43087687]
[1725249755862,0.30922848,57763.0,57762.0,0.05125578]
[1725249756065,0.0008,57767.0,57762.0,0.88016]
[1725249756277,0.0008,57767.0,57766.0,0.05124357]
[1725249756464,0.061391,57767.0,57766.0,0.05124917]
[1725249756665,0.061391,57767.0,57763.0,0.05124917]
[1725249756666,0.060593,57765.0,57763.0,0.05124917]
[1725249756873,0.19524011,57767.0,57764.0,0.05164917]
[1725249757070,0.0008,57767.0,57766.0,0.0004]
[1725249757415,0.0008,57767.0,57764.0,0.060993]
[1725249757677,0.0008,57767.0,57766.0,0.0688172]
[1725249757771,0.19474664,57767.0,57766.0,0.05127874]
[1725249758367,0.060592,57766.0,57764.0,0.0004]
[1725249758666,0.19241159,57765.0,57764.0,0.0004]
[1725249759173,0.54921159,57765.0,57764.0,0.0004]
[1725249759472,0.54921159,57765.0,57764.0,0.0692172]
[1725249759668,0.18841159,57765.0,57764.0,0.0692172]
[1725249759866,0.54921159,57765.0,57764.0,0.06887137]
[1725249760073,0.54921159,57765.0,57764.0,0.0004]
[1725249760269,0.54921159,57765.0,57764.0,0.05176379]
[1725249760579,0.54921159,57765.0,57764.0,0.0004]
[1725249761019,0.67039759,57765.0,57750.0,0.10279122]
[1725249761271,0.061008,57751.0,57749.0,0.08566388]
[1725249761576,0.3608,57753.0,57737.0,0.4122503]
[1725249761577,0.18780068,57750.0,57737.0,0.4122503]
[1725249761873,0.0004,57750.0,57744.0,0.3608]
[1725249762073,0.0004,57750.0,57748.0,0.06061]
[1725249762276,0.0004,57750.0,57743.0,0.060615]
[1725249762478,0.56019718,57749.0,57741.0,0.00025967]
[1725249762776,0.26000718,57749.0,57741.0,0.00025967]
[1725249762977,0.19939718,57749.0,57741.0,0.00025967]
[1725249763180,0.060613,57746.0,57741.0,0.00025967]
[1725249763373,0.1892388,57751.0,57745.0,0.3608]
[1725249763575,0.36172,57752.0,57744.0,0.0514503]
[1725249763769,0.3608,57752.0,57743.0,0.1120663]
[1725249763972,0.1892388,57751.0,57743.0,0.1120663]
[1725249764560,0.001,57750.0,57745.0,0.0514503]
[1725249764671,0.001,57750.0,57744.0,0.0514503]
[1725249764870,0.19105211,57749.0,57744.0,0.0514503]
[1725249765077,0.421407,57752.0,57745.0,0.0514503]
[1725249765278,0.421407,57752.0,57751.0,0.0004]
[1725249765673,0.6133565,57752.0,57751.0,0.0004]
[1725249767579,0.6143565,57752.0,57751.0,0.0004]
[1725249768176,0.121224,57747.0,57745.0,0.007]
[1725249768383,0.3608,57746.0,57745.0,0.007]
[1725249768582,1.72701235,57746.0,57745.0,0.13196992]
[1725249768777,1.72701235,57746.0,57729.0,0.12107234]
[1725249768778,1.90639935,57746.0,57729.0,0.12107234]
[1725249768991,1.90639935,57746.0,57718.0,0.15564151]
[1725249768992,0.121234,57742.0,57740.0,4.6e-07]
[1725249769175,0.121234,57742.0,57712.0,0.49916839]
[1725249769176,0.060643,57717.0,57713.0,0.12107234]
[1725249769487,0.060647,57713.0,57710.0,1e-08]
[1725249769720,0.00025991,57710.0,57699.0,0.00025991]
[1725249770001,0.00025991,57710.0,57675.0,0.17244232]
[1725249770002,0.060667,57694.0,57678.0,0.10344742]
[1725249770185,0.3608,57686.0,57675.0,0.10344742]
[1725249770486,0.3608,57686.0,57667.0,0.3608]
[1725249770487,0.19252936,57685.0,57680.0,0.05159247]
[1725249770684,0.19252936,57685.0,57679.0,0.05159247]
[1725249770978,0.19152936,57685.0,57679.0,0.05159247]
[1725249771179,0.19152936,57685.0,57676.0,0.36105991]
[1725249771180,0.19152936,57685.0,57681.0,0.3608]
[1725249771483,0.19152936,57685.0,57684.0,0.3608]
[1725249771679,0.001,57686.0,57684.0,0.41230087]
[1725249771880,0.001,57686.0,57685.0,0.76008]
[1725249772079,0.3608,57707.0,57691.0,0.06067]
[1725249772283,0.3608,57707.0,57692.0,0.3608]
[1725249772477,0.19541424,57699.0,57692.0,0.3608]
[1725249772681,0.19541424,57706.0,57697.0,0.3608]
[1725249772884,0.60168,57713.0,57697.0,0.3608]
[1725249773079,0.00025991,57711.0,57699.0,0.00025991]
[1725249773585,0.18953918,57710.0,57699.0,0.00025991]
[1725249775176,0.19553918,57710.0,57699.0,0.00125991]
[1725249775788,0.19553918,57710.0,57703.0,0.3608]
[1725249775979,0.19553918,57710.0,57706.0,0.060655]
[1725249776285,0.19553918,57710.0,57709.0,0.060652]
[1725249776286,0.006,57710.0,57709.0,0.060652]
[1725249776680,0.0064,57710.0,57709.0,0.060652]
[1725249777283,0.0004,57710.0,57709.0,0.060652]
[1725249777587,0.0144,57710.0,57709.0,0.060652]
[1725249777989,0.18616652,57710.0,57701.0,0.060659]
[1725249778211,0.20016652,57710.0,57709.0,0.001]
[1725249778584,0.19976652,57710.0,57709.0,0.001]
[1725249778960,0.18576652,57710.0,57709.0,0.003]
[1725249780385,1.30560652,57710.0,57709.0,0.003]
[1725249780694,1.30560652,57710.0,57709.0,0.001]
[1725249780695,1.37925752,57710.0,57709.0,0.001]
[1725249780891,0.060661,57700.0,57692.0,0.1169]
[1725249781113,0.421861,57700.0,57691.0,0.3608]
[1725249781285,0.60953379,57700.0,57691.0,0.3608]
[1725249781481,0.54987279,57700.0,57691.0,0.42147]
[1725249781682,0.54987279,57700.0,57694.0,0.060667]
[1725249781882,0.54887279,57700.0,57696.0,0.060665]
[1725249782084,0.0004,57700.0,57697.0,0.3608]
[1725249782580,0.00025991,57711.0,57699.0,1.48197991]
[1725249782782,0.00025991,57711.0,57700.0,3.77]
[1725249782993,0.18415226,57709.0,57699.0,0.36245991]
[1725249783189,0.18415226,57710.0,57699.0,0.36245991]
[1725249783392,0.06090991,57711.0,57699.0,0.36245991]
[1725249783393,0.00025991,57711.0,57699.0,0.36245991]
[1725249783586,0.00025991,57711.0,57702.0,0.24]
[1725249783587,0.19452015,57710.0,57702.0,0.24]
[1725249783783,0.19452015,57710.0,57699.0,0.36245991]
[1725249783982,0.19452015,57710.0,57705.0,0.060655]
[1725249784390,0.19452015,57710.0,57705.0,0.3608]
[1725249784805,0.19452015,57710.0,57708.0,0.060652]
[1725249785290,0.20352015,57710.0,57708.0,0.060652]
[1725249786497,0.009,57710.0,57708.0,0.060652]
[1725249787089,0.00025991,57711.0,57710.0,0.060651]
[1725249787890,0.20117014,57711.0,57705.0,0.3608]
[1725249788198,0.0004,57706.0,57705.0,0.3608]
[1725249788490,0.20117014,57711.0,57705.0,0.3608]
[1725249788491,0.20117014,57711.0,57710.0,0.070251]
[1725249788897,0.20117014,57711.0,57710.0,0.060651]
[1725249790089,0.00025991,57711.0,57710.0,0.060651]
[1725249791296,0.00525991,57711.0,57710.0,0.060651]
[1725249791604,0.3608,57724.0,57723.0,0.060637]
[1725249791800,0.3608,57724.0,57723.0,0.061037]
[1725249792094,0.54408104,57724.0,57723.0,0.061037]
[1725249792500,0.54408104,57724.0,57723.0,0.0004]
[1725249792697,1.66380104,57724.0,57723.0,0.0004]
[1725249794000,0.54408104,57724.0,57723.0,0.0004]
[1725249794497,1.66380104,57724.0,57723.0,0.0004]
[1725249794798,1.66780104,57724.0,57723.0,0.0014]
[1725249795996,0.060641,57719.0,57718.0,0.00025991]
[1725249796190,0.731841,57719.0,57718.0,0.00025991]
[1725249796394,2.05148219,57719.0,57705.0,0.05149021]
[1725249796598,2.05148219,57719.0,57699.0,0.05168718]
[1725249796599,0.6012,57706.0,57699.0,0.05168718]
[1725249796802,0.300664,57697.0,57691.0,0.05168718]
[1725249796993,0.6008,57692.0,57682.0,0.05170338]
[1725249797197,0.6008,57692.0,57665.0,0.3608]
[1725249797198,0.24,57682.0,57674.0,0.05170338]
[1725249797397,0.24,57682.0,57673.0,0.03296329]
[1725249797398,0.3608,57675.0,57673.0,0.03296329]
[1725249797850,0.060697,57666.0,57656.0,0.04457105]
[1725249798005,0.19328588,57665.0,57651.0,0.300712]
[1725249798261,0.25398488,57665.0,57647.0,0.3608]
[1725249798501,0.00026014,57662.0,57650.0,0.00026014]
[1725249798690,0.3608,57655.0,57650.0,0.00026014]
[1725249799023,0.19037626,57654.0,57650.0,0.00026014]
[1725249799398,0.00026014,57662.0,57653.0,0.3608]
[1725249799598,0.00026014,57662.0,57661.0,0.6008]
[1725249800194,0.00026014,57662.0,57661.0,1.12108]
[1725249800500,0.3608,57688.0,57665.0,0.060697]
[1725249800796,0.08582986,57702.0,57661.0,1.72108]
[1725249800797,0.54226892,57678.0,57661.0,0.60224]
[1725249800999,0.54226892,57678.0,57661.0,0.3608]
[1725249801198,0.060686,57677.0,57661.0,0.3608]
[1725249801396,0.24781447,57677.0,57661.0,0.3608]
[1725249801700,0.24781447,57677.0,57663.0,0.00026014]
[1725249801701,0.00026014,57675.0,57663.0,0.00026014]
[1725249801899,0.3608,57671.0,57663.0,0.00026014]
[1725249802309,0.18712847,57670.0,57663.0,0.00026014]
[1725249802901,0.060697,57667.0,57663.0,0.00026014]
[1725249803495,0.18544836,57666.0,57663.0,0.00026014]
[1725249804004,0.0004,57664.0,57663.0,0.00026014]
[1725249804307,0.0004,57664.0,57663.0,0.00226014]
[1725249804397,0.18615251,57664.0,57663.0,0.00226014]
[1725249804608,0.0004,57664.0,57663.0,0.00226014]
[1725249805303,0.18615251,57664.0,57663.0,0.00226014]
[1725249805505,0.0004,57664.0,57663.0,0.00226014]
[1725249805708,0.0004,57664.0,57663.0,0.52250014]
[1725249806205,0.0004,57664.0,57663.0,1.12250014]
[1725249806516,0.060681,57681.0,57663.0,4.89250014]
[1725249806700,0.060681,57681.0,57667.0,0.3608]
[1725249807002,0.18514819,57674.0,57667.0,0.3608]
[1725249807802,0.18514819,57674.0,57663.0,0.00266014]
[1725249807803,0.060694,57670.0,57663.0,0.00266014]
[1725249808283,0.060698,57665.0,57663.0,0.00266014]
[1725249808295,0.3608,57664.0,57663.0,0.00066014]
[1725249808394,1.06301771,57664.0,57647.0,0.00144]
[1725249808597,1.06301771,57664.0,57637.0,0.0867]
[1725249808598,0.6008,57648.0,57637.0,0.0867]
[1725249808801,0.3608,57642.0,57637.0,0.0867]
[1725249809104,0.24,57643.0,57626.0,0.3608]
[1725249809305,0.00026014,57640.0,57637.0,0.060727]
[1725249809503,0.00026014,57640.0,57633.0,0.0867]
[1725249810100,0.00026014,57640.0,57638.0,0.060726]
[1725249810500,0.00026014,57640.0,57639.0,0.88128]
[1725249811079,0.3608,57647.0,57639.0,1.48128]
[1725249811109,0.6008,57659.0,57646.0,0.3608]
[1725249811410,0.19001305,57652.0,57651.0,0.060712]
[1725249811911,0.00026014,57657.0,57651.0,0.060712]
[1725249812100,0.19001305,57652.0,57651.0,0.060712]
[1725249812299,0.19001305,57656.0,57651.0,0.060712]
[1725249812508,0.00026014,57657.0,57651.0,0.060712]
[1725249812705,0.001,57652.0,57651.0,0.060712]
[1725249813113,0.19449124,57652.0,57651.0,0.060712]
[1725249814254,0.19449124,57652.0,57647.0,0.1101]
[1725249814515,0.0004,57648.0,57647.0,0.1101]
[1725249814711,0.009,57652.0,57651.0,0.0006]
[1725249815218,0.00026014,57657.0,57652.0,0.060712]
[1725249815713,0.18454746,57656.0,57653.0,0.06071]
[1725249815914,0.18454746,57656.0,57654.0,0.060709]
[1725249816113,0.18454746,57656.0,57655.0,0.3608]
[1725249816310,0.00026014,57657.0,57656.0,0.060707]
[1725249816619,0.00126014,57657.0,57656.0,0.060707]
[1725249817001,0.00126014,57657.0,57656.0,0.581027]
[1725249817706,0.00026014,57657.0,57656.0,0.581027]
[1725249817946,0.3608,57671.0,57665.0,0.060698]
[1725249818201,0.18554461,57669.0,57665.0,0.060698]
[1725249818400,0.18554461,57669.0,57663.0,0.3608]
[1725249818615,0.003,57657.0,57655.0,0.002]
[1725249819111,0.18278524,57656.0,57655.0,0.002]
[1725249819507,0.17978524,57656.0,57651.0,0.060712]
[1725249819916,0.0004,57652.0,57651.0,0.060712]
[1725249820314,0.00026014,57662.0,57655.0,0.001]
[1725249820513,0.00026014,57662.0,57661.0,0.3608]
[1725249820916,0.014,57671.0,57665.0,0.00073986]
[1725249821417,0.18948037,57670.0,57665.0,0.00073986]
[1725249821618,0.18948037,57670.0,57661.0,0.36228]
[1725249821619,0.18948037,57670.0,57668.0,0.060694]
[1725249822116,0.19745549,57674.0,57668.0,0.060694]
[1725249822321,0.421487,57676.0,57673.0,0.0004]
[1725249822620,0.1984485,57674.0,57673.0,0.0004]
[1725249822913,0.820848,57675.0,57673.0,0.0004]
[1725249823118,0.52016,57674.0,57673.0,0.0004]
[1725249823314,0.7186085,57674.0,57668.0,0.001]
[1725249823517,0.580894,57669.0,57668.0,0.001]
[1725249823713,0.060694,57669.0,57668.0,0.001]
[1725249823914,0.25272041,57669.0,57668.0,0.001]
[1725249824166,0.77292041,57669.0,57668.0,0.001]
[1725249824314,0.25172041,57669.0,57668.0,0.001]
[1725249824716,0.25072041,57669.0,57663.0,0.00026014]
[1725249825309,0.26472041,57669.0,57668.0,0.001]
[1725249825705,0.20602641,57669.0,57668.0,0.001]
[1725249825922,0.22002641,57669.0,57668.0,0.001]
[1725249828011,0.20602641,57669.0,57668.0,0.001]
[1725249828207,0.22002641,57669.0,57668.0,0.002]
[1725249828718,0.58082641,57669.0,57668.0,0.002]
[1725249829046,0.060699,57664.0,57663.0,0.00026014]
[1725249829319,0.802598,57664.0,57663.0,0.00026014]
[1725249829517,2.10538987,57664.0,57663.0,0.00026014]
[1725249829819,2.04469087,57664.0,57663.0,0.00026014]
[1725249830119,2.04469087,57664.0,57663.0,0.00126014]
[1725249830320,0.81245087,57664.0,57663.0,0.00126014]
[1725249830708,0.19095187,57664.0,57663.0,0.00126014]
[1725249831510,0.19095187,57664.0,57663.0,0.07038561]
[1725249832009,0.20495187,57664.0,57663.0,0.00226014]
[1725249832218,0.0224,57664.0,57663.0,0.00226014]
[1725249832416,0.0084,57664.0,57663.0,0.00126014]
[1725249832721,0.0144,57664.0,57663.0,0.00126014]
[1725249832921,0.0224,57664.0,57663.0,0.0881433]
[1725249833127,0.0224,57664.0,57663.0,0.22027046]
[1725249833621,0.0224,57664.0,57663.0,0.0881433]
[1725249833943,0.0224,57664.0,57663.0,0.22027096]
[1725249834120,0.0224,57664.0,57663.0,0.0881433]
[1725249834318,0.0224,57664.0,57663.0,0.22026978]
[1725249834822,0.0224,57664.0,57663.0,0.0881433]
[1725249835020,0.0224,57664.0,57663.0,0.1488433]
[1725249835412,0.0224,57664.0,57663.0,0.28096913]
[1725249835826,0.0224,57664.0,57663.0,0.1524655]
[1725249836014,0.0224,57664.0,57663.0,0.06658234]
[1725249836539,0.0224,57664.0,57663.0,0.06296014]
[1725249836719,0.21734856,57664.0,57663.0,0.06296014]
[1725249837300,0.0224,57664.0,57663.0,0.06296014]
[1725249837801,0.0224,57664.0,57663.0,0.28097048]
[1725249838114,0.0224,57664.0,57663.0,0.1488433]
[1725249838318,0.0224,57664.0,57663.0,0.28096931]
[1725249838520,0.0224,57664.0,57663.0,0.28096819]
[1725249838719,0.0224,57664.0,57663.0,0.1488433]
[1725249839119,0.0224,57664.0,57663.0,0.06296014]
[1725249839336,0.0224,57664.0,57663.0,0.1488433]
[1725249839618,0.0224,57664.0,57663.0,0.19508661]
[1725249840522,0.3608,57681.0,57663.0,1.25462661]
[1725249840722,0.0685785,57690.0,57678.0,0.3608]
[1725249840927,0.0685785,57696.0,57690.0,0.060671]
[1725249841125,0.18380928,57692.0,57690.0,0.260672]
[1725249841316,0.3608,57699.0,57694.0,0.060667]
[1725249841513,0.0685785,57715.0,57704.0,0.060656]
[1725249841718,0.687,57718.0,57714.0,0.0004]
[1725249841719,0.060645,57716.0,57714.0,0.0004]
[1725249841917,0.3608,57718.0,57714.0,0.0004]
[1725249841918,0.1839199,57717.0,57715.0,0.0004]
[1725249842216,0.3618,57727.0,57717.0,0.060643]
[1725249842419,0.3608,57727.0,57726.0,0.0004]
[1725249842618,0.18643185,57727.0,57726.0,0.3612]
[1725249842819,1.31968,57727.0,57726.0,0.0004]
[1725249843028,1.31968,57727.0,57714.0,0.0004]
[1725249843029,0.060642,57719.0,57716.0,0.00025992]
[1725249843225,0.007,57717.0,57716.0,0.00025992]
[1725249843825,1.32429017,57717.0,57716.0,0.00025992]
[1725249844089,1.68509017,57717.0,57716.0,0.00025992]
[1725249844528,0.56429017,57717.0,57716.0,0.00025992]
[1725249844727,0.55829017,57717.0,57716.0,0.00025992]
[1725249844925,0.55729017,57717.0,57716.0,0.00025992]
[1725249845422,0.56029017,57717.0,57716.0,0.00225992]
[1725249845997,0.3638,57717.0,57716.0,0.00225992]
[1725249846137,0.3608,57717.0,57716.0,0.00225992]
[1725249847328,0.3608,57717.0,57716.0,0.00125992]
[1725249847530,0.5555001,57717.0,57716.0,0.00125992]
[1725249848321,0.5585001,57717.0,57716.0,0.00125992]
[1725249848828,0.5585001,57717.0,57716.0,0.00025992]
[1725249849096,0.1967001,57717.0,57716.0,0.00125992]
[1725249849522,0.004,57717.0,57716.0,0.00125992]
[1725249849719,0.3608,57728.0,57716.0,0.00125992]
[1725249849720,0.3608,57728.0,57716.0,1.32105992]
[1725249850036,0.3608,57735.0,57727.0,0.3612]
[1725249850225,0.2,57739.0,57727.0,0.3612]
[1725249850416,0.18188717,57733.0,57727.0,0.3612]
[1725249850617,0.25024447,57738.0,57727.0,0.3612]
[1725249850827,0.2,57734.0,57727.0,0.3612]
[1725249851026,0.060631,57729.0,57727.0,0.3612]
[1725249851230,0.060631,57729.0,57727.0,0.3622]